[Event "Titled Tuesday Blitz April 4 Early 2023"]
[White "Samsonkin, Artiom"]
[Black "Antal, Gergely"]
[WhiteFideId "13503111"]
[BlackFideId "717312"]
[WhiteElo "2524"]
[BlackElo "2471"]
[Result "0-1"]
[Round "07"]
[TimeControl "180+2"]
[Date "2023.04.04"]
[WhiteClock "0:00:01"]
[BlackClock "0:00:11"]

1. e4 {[%clk 0:02:54]}  c6 {[%clk 0:02:57]} 2. d4 {[%clk 0:02:51]}  d5 {[%clk 0:02:58]} 3. e5 {[%clk 0:02:52]}  c5 {[%clk 0:02:58]} 4. dxc5 {[%clk 0:02:52]}  Nc6 {[%clk 0:02:59]} 5. Nf3 {[%clk 0:02:51]}  Bg4 {[%clk 0:02:59]} 6. a3 {[%clk 0:02:47]}  e6 {[%clk 0:02:45]} 7. b4 {[%clk 0:02:47]}  Bxf3 {[%clk 0:02:45]} 8. Qxf3 {[%clk 0:02:47]}  Nxe5 {[%clk 0:02:45]} 9. Bb5+ {[%clk 0:02:48]}  Nc6 {[%clk 0:02:44]} 10. O-O {[%clk 0:02:49]}  Nf6 {[%clk 0:02:44]} 11. Bb2 {[%clk 0:02:48]}  Be7 {[%clk 0:02:45]} 12. c4 {[%clk 0:02:48]}  O-O {[%clk 0:02:44]} 13. cxd5 {[%clk 0:02:48]}  Nxd5 {[%clk 0:02:28]} 14. Rd1 {[%clk 0:02:34]}  Bf6 {[%clk 0:01:56]} 15. Bxf6 {[%clk 0:02:11]}  Qxf6 {[%clk 0:01:57]} 16. Qxf6 {[%clk 0:02:10]}  gxf6 {[%clk 0:01:58]} 17. Bc4 {[%clk 0:01:50]}  Nce7 {[%clk 0:01:58]} 18. Nd2 {[%clk 0:01:49]}  a5 {[%clk 0:01:43]} 19. Ne4 {[%clk 0:01:27]}  axb4 {[%clk 0:01:38]} 20. axb4 {[%clk 0:01:26]}  f5 {[%clk 0:01:14]} 21. Nd6 {[%clk 0:01:19]}  Nxb4 {[%clk 0:01:14]} 22. Rxa8 {[%clk 0:01:13]}  Rxa8 {[%clk 0:01:14]} 23. Nxb7 {[%clk 0:01:14]}  Rc8 {[%clk 0:00:57]} 24. Rd8+ {[%clk 0:00:53]}  Rxd8 {[%clk 0:00:55]} 25. Nxd8 {[%clk 0:00:54]}  Nbc6 {[%clk 0:00:30]} 26. Nxc6 {[%clk 0:00:44]}  Nxc6 {[%clk 0:00:31]} 27. Bb5 {[%clk 0:00:41]}  Nb4 {[%clk 0:00:28]} 28. f4 {[%clk 0:00:35]}  Kf8 {[%clk 0:00:28]} 29. Kf2 {[%clk 0:00:35]}  Ke7 {[%clk 0:00:25]} 30. Kg3 {[%clk 0:00:28]}  Nd5 {[%clk 0:00:25]} 31. Bc4 {[%clk 0:00:23]}  Kd7 {[%clk 0:00:23]} 32. Bb5+ {[%clk 0:00:23]}  Ke7 {[%clk 0:00:21]} 33. Bc6 {[%clk 0:00:20]}  Nb4 {[%clk 0:00:13]} 34. Ba4 {[%clk 0:00:14]}  f6 {[%clk 0:00:13]} 35. Kh4 {[%clk 0:00:12]}  Nd3 {[%clk 0:00:13]} 36. c6 {[%clk 0:00:12]}  Kd6 {[%clk 0:00:13]} 37. g3 {[%clk 0:00:12]}  e5 {[%clk 0:00:13]} 38. Bc2 {[%clk 0:00:11]}  e4 {[%clk 0:00:12]} 39. Kh5 {[%clk 0:00:08]}  Kxc6 {[%clk 0:00:12]} 40. Kh6 {[%clk 0:00:08]}  Nf2 {[%clk 0:00:11]} 41. Kxh7 {[%clk 0:00:01]}  e3 {[%clk 0:00:11]} 0-1


[Site "https://www.chess.com"]

[Event "Titled Tuesday Blitz April 4 Early 2023"]
[White "Danielyan, Vahe"]
[Black "Pichot, Alan"]
[WhiteFideId "13304828"]
[BlackFideId "110973"]
[WhiteElo "2423"]
[BlackElo "2573"]
[Result "1-0"]
[Round "07"]
[TimeControl "180+2"]
[Date "2023.04.04"]
[WhiteClock "0:00:19"]
[BlackClock "0:00:38"]

1. e4 {[%clk 0:03:00]}  c5 {[%clk 0:02:56]} 2. Nc3 {[%clk 0:03:00]}  e6 {[%clk 0:02:55]} 3. Nf3 {[%clk 0:03:00]}  Nc6 {[%clk 0:02:56]} 4. Bb5 {[%clk 0:03:00]}  Nd4 {[%clk 0:02:55]} 5. O-O {[%clk 0:02:58]}  a6 {[%clk 0:02:54]} 6. Bd3 {[%clk 0:02:57]}  Nc6 {[%clk 0:02:55]} 7. a3 {[%clk 0:02:55]}  g6 {[%clk 0:02:53]} 8. b4 {[%clk 0:02:50]}  cxb4 {[%clk 0:02:48]} 9. axb4 {[%clk 0:02:51]}  Bg7 {[%clk 0:02:42]} 10. b5 {[%clk 0:02:48]}  Ne5 {[%clk 0:02:38]} 11. Nxe5 {[%clk 0:02:36]}  Bxe5 {[%clk 0:02:39]} 12. bxa6 {[%clk 0:02:35]}  bxa6 {[%clk 0:02:38]} 13. Ba3 {[%clk 0:02:35]}  Nf6 {[%clk 0:02:35]} 14. f4 {[%clk 0:02:32]}  Bd4+ {[%clk 0:02:33]} 15. Kh1 {[%clk 0:02:32]}  h5 {[%clk 0:02:30]} 16. e5 {[%clk 0:02:28]}  Ng4 {[%clk 0:02:30]} 17. Qe1 {[%clk 0:02:13]}  Bb7 {[%clk 0:02:20]} 18. Be4 {[%clk 0:01:54]}  Bxc3 {[%clk 0:01:48]} 19. dxc3 {[%clk 0:01:46]}  Qc8 {[%clk 0:01:46]} 20. Rb1 {[%clk 0:01:41]}  Bc6 {[%clk 0:01:45]} 21. Bxc6 {[%clk 0:01:05]}  Qxc6 {[%clk 0:01:44]} 22. Qh4 {[%clk 0:01:05]}  f6 {[%clk 0:01:45]} 23. h3 {[%clk 0:00:29]}  d5 {[%clk 0:01:10]} 24. hxg4 {[%clk 0:00:26]}  O-O-O {[%clk 0:01:01]} 25. g5 {[%clk 0:00:21]}  f5 {[%clk 0:00:57]} 26. Qf2 {[%clk 0:00:20]}  Rh7 {[%clk 0:00:56]} 27. Qb6 {[%clk 0:00:20]}  Rc7 {[%clk 0:00:52]} 28. Bd6 {[%clk 0:00:18]}  Qxb6 {[%clk 0:00:52]} 29. Rxb6 {[%clk 0:00:19]}  Rxc3 {[%clk 0:00:53]} 30. Rfb1 {[%clk 0:00:19]}  d4 {[%clk 0:00:37]} 31. Rb8+ {[%clk 0:00:18]}  Kd7 {[%clk 0:00:38]} 32. R1b7+ {[%clk 0:00:17]}  Kc6 {[%clk 0:00:39]} 33. Rc7+ {[%clk 0:00:18]}  Kd5 {[%clk 0:00:39]} 34. Rxd8 {[%clk 0:00:18]}  Rg3 {[%clk 0:00:37]} 35. Bc5+ {[%clk 0:00:18]}  Ke4 {[%clk 0:00:38]} 36. Rxd4+ {[%clk 0:00:18]}  Ke3 {[%clk 0:00:38]} 37. Rd3+ {[%clk 0:00:19]} 1-0


[Site "https://www.chess.com"]

[Event "Titled Tuesday Blitz April 4 Early 2023"]
[White "Mammadov, Zaur"]
[Black "Sieciechowicz, Marcin"]
[WhiteFideId "13401033"]
[BlackFideId "1130170"]
[WhiteElo "2441"]
[BlackElo "2302"]
[Result "1/2-1/2"]
[Round "07"]
[TimeControl "180+2"]
[Date "2023.04.04"]
[WhiteClock "0:00:22"]
[BlackClock "0:00:11"]

1. e4 {[%clk 0:03:00]}  c5 {[%clk 0:02:59]} 2. c3 {[%clk 0:03:01]}  d5 {[%clk 0:02:58]} 3. exd5 {[%clk 0:03:02]}  Qxd5 {[%clk 0:02:58]} 4. d4 {[%clk 0:03:02]}  g6 {[%clk 0:02:58]} 5. Nf3 {[%clk 0:03:03]}  Bg7 {[%clk 0:02:31]} 6. Na3 {[%clk 0:03:03]}  cxd4 {[%clk 0:02:20]} 7. Bc4 {[%clk 0:03:03]}  Qd8 {[%clk 0:02:10]} 8. Nb5 {[%clk 0:03:01]}  Nf6 {[%clk 0:02:07]} 9. Nbxd4 {[%clk 0:03:00]}  O-O {[%clk 0:02:06]} 10. O-O {[%clk 0:03:00]}  Bd7 {[%clk 0:02:06]} 11. Qb3 {[%clk 0:02:56]}  Nc6 {[%clk 0:02:02]} 12. Qxb7 {[%clk 0:02:37]}  Na5 {[%clk 0:02:02]} 13. Qa6 {[%clk 0:02:37]}  Bc8 {[%clk 0:01:49]} 14. Qb5 {[%clk 0:02:36]}  Bd7 {[%clk 0:01:43]} 15. Qa6 {[%clk 0:02:26]}  Bc8 {[%clk 0:01:42]} 16. Qb5 {[%clk 0:02:25]}  Bd7 {[%clk 0:01:42]} 17. Qb4 {[%clk 0:02:24]}  Rb8 {[%clk 0:01:40]} 18. Bb5 {[%clk 0:02:24]}  a6 {[%clk 0:01:24]} 19. a4 {[%clk 0:02:15]}  axb5 {[%clk 0:00:44]} 20. axb5 {[%clk 0:02:16]}  Nc6 {[%clk 0:00:44]} 21. Nxc6 {[%clk 0:02:15]}  Bxc6 {[%clk 0:00:45]} 22. Nd4 {[%clk 0:02:16]}  Bd5 {[%clk 0:00:38]} 23. Bf4 {[%clk 0:02:15]}  Ra8 {[%clk 0:00:33]} 24. b6 {[%clk 0:02:10]}  Qd7 {[%clk 0:00:31]} 25. Rxa8 {[%clk 0:02:03]}  Rxa8 {[%clk 0:00:31]} 26. Re1 {[%clk 0:02:03]}  e6 {[%clk 0:00:31]} 27. c4 {[%clk 0:01:45]}  Bb7 {[%clk 0:00:31]} 28. Be5 {[%clk 0:01:39]}  Bf8 {[%clk 0:00:29]} 29. Qc3 {[%clk 0:01:30]}  Ng4 {[%clk 0:00:25]} 30. Bg3 {[%clk 0:01:19]}  Bg7 {[%clk 0:00:24]} 31. Rd1 {[%clk 0:00:27]}  Qxd4 {[%clk 0:00:21]} 32. Qxd4 {[%clk 0:00:26]}  Bxd4 {[%clk 0:00:21]} 33. h3 {[%clk 0:00:26]}  Bxb6 {[%clk 0:00:15]} 34. hxg4 {[%clk 0:00:27]}  Rd8 {[%clk 0:00:15]} 35. Rc1 {[%clk 0:00:21]}  Bc5 {[%clk 0:00:14]} 36. b4 {[%clk 0:00:20]}  Bxb4 {[%clk 0:00:14]} 37. Rb1 {[%clk 0:00:20]}  Bd6 {[%clk 0:00:05]} 38. Bxd6 {[%clk 0:00:19]}  Rxd6 {[%clk 0:00:06]} 39. Rxb7 {[%clk 0:00:19]}  Rd4 {[%clk 0:00:06]} 40. c5 {[%clk 0:00:19]}  Rxg4 {[%clk 0:00:07]} 41. c6 {[%clk 0:00:18]}  Rc4 {[%clk 0:00:07]} 42. Rc7 {[%clk 0:00:19]}  Kg7 {[%clk 0:00:07]} 43. f3 {[%clk 0:00:20]}  Kf6 {[%clk 0:00:08]} 44. Kf2 {[%clk 0:00:21]}  h5 {[%clk 0:00:08]} 45. Rc8 {[%clk 0:00:22]}  Ke7 {[%clk 0:00:08]} 46. c7 {[%clk 0:00:23]}  Kd7 {[%clk 0:00:07]} 47. Rf8 {[%clk 0:00:23]}  Rxc7 {[%clk 0:00:07]} 48. Rxf7+ {[%clk 0:00:24]}  Kd6 {[%clk 0:00:07]} 49. Rf6 {[%clk 0:00:25]}  Rg7 {[%clk 0:00:07]} 50. Rf4 {[%clk 0:00:24]}  Ke7 {[%clk 0:00:07]} 51. Kg3 {[%clk 0:00:24]}  Rf7 {[%clk 0:00:07]} 52. Ra4 {[%clk 0:00:24]}  Rf5 {[%clk 0:00:07]} 53. Ra8 {[%clk 0:00:23]}  Kf6 {[%clk 0:00:07]} 54. f4 {[%clk 0:00:22]}  Rb5 {[%clk 0:00:07]} 55. Kf3 {[%clk 0:00:22]}  Rb3+ {[%clk 0:00:06]} 56. Kf2 {[%clk 0:00:22]}  Rb4 {[%clk 0:00:07]} 57. Kf3 {[%clk 0:00:23]}  Rb2 {[%clk 0:00:07]} 58. g3 {[%clk 0:00:22]}  Rb3+ {[%clk 0:00:07]} 59. Kf2 {[%clk 0:00:23]}  Kf5 {[%clk 0:00:08]} 60. Ra5+ {[%clk 0:00:20]}  Kf6 {[%clk 0:00:07]} 61. Ra8 {[%clk 0:00:19]}  Rd3 {[%clk 0:00:06]} 62. Rf8+ {[%clk 0:00:20]}  Kg7 {[%clk 0:00:07]} 63. Rb8 {[%clk 0:00:20]}  Kf7 {[%clk 0:00:07]} 64. Rb7+ {[%clk 0:00:21]}  Kf6 {[%clk 0:00:07]} 65. Rb8 {[%clk 0:00:22]}  Kf5 {[%clk 0:00:07]} 66. Rf8+ {[%clk 0:00:22]}  Kg4 {[%clk 0:00:07]} 67. Rf6 {[%clk 0:00:22]}  Rf3+ {[%clk 0:00:08]} 68. Ke2 {[%clk 0:00:23]}  Rxg3 {[%clk 0:00:07]} 69. Rxg6+ {[%clk 0:00:23]}  Kxf4 {[%clk 0:00:07]} 70. Rxe6 {[%clk 0:00:23]}  h4 {[%clk 0:00:06]} 71. Rh6 {[%clk 0:00:24]}  Kg4 {[%clk 0:00:06]} 72. Kf2 {[%clk 0:00:24]}  Kh3 {[%clk 0:00:06]} 73. Rh8 {[%clk 0:00:24]}  Rg2+ {[%clk 0:00:06]} 74. Kf3 {[%clk 0:00:24]}  Rg3+ {[%clk 0:00:07]} 75. Kf2 {[%clk 0:00:24]}  Rg7 {[%clk 0:00:07]} 76. Rh6 {[%clk 0:00:23]}  Rg4 {[%clk 0:00:07]} 77. Rh7 {[%clk 0:00:23]}  Kh2 {[%clk 0:00:06]} 78. Rh8 {[%clk 0:00:24]}  h3 {[%clk 0:00:07]} 79. Rh7 {[%clk 0:00:24]}  Rf4+ {[%clk 0:00:07]} 80. Ke3 {[%clk 0:00:22]}  Rf8 {[%clk 0:00:08]} 81. Ke2 {[%clk 0:00:22]}  Kg2 {[%clk 0:00:08]} 82. Rg7+ {[%clk 0:00:22]}  Kh1 {[%clk 0:00:08]} 83. Rg6 {[%clk 0:00:23]}  h2 {[%clk 0:00:08]} 84. Rg5 {[%clk 0:00:23]}  Rf4 {[%clk 0:00:09]} 85. Rg6 {[%clk 0:00:23]}  Ra4 {[%clk 0:00:09]} 86. Kf2 {[%clk 0:00:23]}  Ra2+ {[%clk 0:00:09]} 87. Kf1 {[%clk 0:00:23]}  Ra1+ {[%clk 0:00:09]} 88. Kf2 {[%clk 0:00:23]}  Rg1 {[%clk 0:00:10]} 89. Rh6 {[%clk 0:00:23]}  Rg2+ {[%clk 0:00:10]} 90. Kf1 {[%clk 0:00:23]}  Ra2 {[%clk 0:00:10]} 91. Rg6 {[%clk 0:00:22]}  Ra1+ {[%clk 0:00:10]} 92. Kf2 {[%clk 0:00:22]}  Rg1 {[%clk 0:00:09]} 93. Rh6 {[%clk 0:00:22]}  Rg8 {[%clk 0:00:09]} 94. Rf6 {[%clk 0:00:22]}  Rg2+ {[%clk 0:00:08]} 95. Kf1 {[%clk 0:00:22]}  Rg1+ {[%clk 0:00:09]} 96. Kf2 {[%clk 0:00:22]}  Rg2+ {[%clk 0:00:09]} 97. Kf1 {[%clk 0:00:22]}  Rg1+ {[%clk 0:00:10]} 98. Kf2 {[%clk 0:00:22]}  Rg2+ {[%clk 0:00:11]} 1/2-1/2


[Site "https://www.chess.com"]

[Event "Titled Tuesday Blitz April 4 Early 2023"]
[White "Mahdavi, Reza"]
[Black "Atanasov, Anthony"]
[WhiteFideId "12595926"]
[BlackFideId "2623897"]
[WhiteElo "2357"]
[BlackElo "2326"]
[Result "1-0"]
[Round "07"]
[TimeControl "180+2"]
[Date "2023.04.04"]
[WhiteClock "0:01:36"]
[BlackClock "0:00:02"]

1. Nf3 {[%clk 0:02:59]}  Nf6 {[%clk 0:03:00]} 2. g3 {[%clk 0:02:59]}  d5 {[%clk 0:03:00]} 3. Bg2 {[%clk 0:02:59]}  Bf5 {[%clk 0:03:01]} 4. c4 {[%clk 0:02:59]}  e6 {[%clk 0:03:01]} 5. Qb3 {[%clk 0:02:47]}  Nc6 {[%clk 0:03:01]} 6. O-O {[%clk 0:02:46]}  a6 {[%clk 0:02:58]} 7. d4 {[%clk 0:02:46]}  Be7 {[%clk 0:02:56]} 8. Bd2 {[%clk 0:02:37]}  Rb8 {[%clk 0:02:45]} 9. Nc3 {[%clk 0:02:34]}  O-O {[%clk 0:02:42]} 10. cxd5 {[%clk 0:02:33]}  exd5 {[%clk 0:02:42]} 11. Na4 {[%clk 0:02:28]}  Ne4 {[%clk 0:02:33]} 12. Bf4 {[%clk 0:02:14]}  g5 {[%clk 0:02:27]} 13. Be3 {[%clk 0:02:13]}  g4 {[%clk 0:02:07]} 14. Ne5 {[%clk 0:02:12]}  Nxe5 {[%clk 0:02:02]} 15. dxe5 {[%clk 0:02:13]}  c5 {[%clk 0:01:30]} 16. Rfd1 {[%clk 0:01:55]}  c4 {[%clk 0:01:08]} 17. Qb6 {[%clk 0:01:40]}  Qe8 {[%clk 0:00:59]} 18. Nc3 {[%clk 0:01:36]}  Bd8 {[%clk 0:00:48]} 19. Qd4 {[%clk 0:01:35]}  Nxc3 {[%clk 0:00:42]} 20. bxc3 {[%clk 0:01:36]}  Bc7 {[%clk 0:00:35]} 21. Bf4 {[%clk 0:01:36]}  Rd8 {[%clk 0:00:25]} 22. Bxd5 {[%clk 0:01:35]}  Be6 {[%clk 0:00:16]} 23. e4 {[%clk 0:01:36]}  b5 {[%clk 0:00:15]} 24. Bh6 {[%clk 0:01:36]}  Bxd5 {[%clk 0:00:01]} 25. exd5 {[%clk 0:01:37]}  Bxe5 {[%clk 0:00:02]} 26. Qxg4+ {[%clk 0:01:37]}  Kh8 {[%clk 0:00:02]} 27. Bxf8 {[%clk 0:01:35]}  Qxf8 {[%clk 0:00:03]} 28. Qf3 {[%clk 0:01:34]}  f5 {[%clk 0:00:03]} 29. Re1 {[%clk 0:01:34]}  Qf6 {[%clk 0:00:03]} 30. Rad1 {[%clk 0:01:34]}  Bxc3 {[%clk 0:00:03]} 31. Re6 {[%clk 0:01:35]}  Qg7 {[%clk 0:00:02]} 32. d6 {[%clk 0:01:36]} 1-0


[Site "https://www.chess.com"]

[Event "Titled Tuesday Blitz April 4 Early 2023"]
[White "NiklasSchmider"]
[Black "Zhao, Jun"]
[BlackFideId "8602522"]
[WhiteElo "2622"]
[BlackElo "2547"]
[Result "0-1"]
[Round "07"]
[TimeControl "180+2"]
[Date "2023.04.04"]
[WhiteClock "0:00:03"]
[BlackClock "0:00:03"]

1. e4 {[%clk 0:03:00]}  e5 {[%clk 0:02:52]} 2. Nf3 {[%clk 0:03:00]}  Nc6 {[%clk 0:02:53]} 3. Bb5 {[%clk 0:03:00]}  a6 {[%clk 0:02:53]} 4. Ba4 {[%clk 0:03:00]}  Nf6 {[%clk 0:02:53]} 5. O-O {[%clk 0:03:00]}  Be7 {[%clk 0:02:53]} 6. Re1 {[%clk 0:02:58]}  b5 {[%clk 0:02:53]} 7. Bb3 {[%clk 0:02:58]}  O-O {[%clk 0:02:54]} 8. h3 {[%clk 0:02:42]}  d5 {[%clk 0:02:50]} 9. exd5 {[%clk 0:02:34]}  Nxd5 {[%clk 0:02:51]} 10. Nxe5 {[%clk 0:02:25]}  Nxe5 {[%clk 0:02:51]} 11. Rxe5 {[%clk 0:02:26]}  Bb7 {[%clk 0:02:51]} 12. d3 {[%clk 0:02:18]}  Bf6 {[%clk 0:02:46]} 13. Re1 {[%clk 0:02:14]}  c5 {[%clk 0:02:46]} 14. Nd2 {[%clk 0:01:57]}  Qc7 {[%clk 0:02:39]} 15. Qg4 {[%clk 0:01:18]}  g6 {[%clk 0:02:27]} 16. a4 {[%clk 0:01:09]}  Bg7 {[%clk 0:02:14]} 17. axb5 {[%clk 0:01:08]}  axb5 {[%clk 0:02:15]} 18. Rxa8 {[%clk 0:01:09]}  Rxa8 {[%clk 0:02:12]} 19. Nf3 {[%clk 0:01:04]}  Rc8 {[%clk 0:01:53]} 20. Bxd5 {[%clk 0:01:02]}  Bxd5 {[%clk 0:01:53]} 21. Bf4 {[%clk 0:00:35]}  Qb7 {[%clk 0:01:53]} 22. Re7 {[%clk 0:00:24]}  Qa6 {[%clk 0:00:41]} 23. Be5 {[%clk 0:00:19]}  h5 {[%clk 0:00:34]} 24. Qf4 {[%clk 0:00:16]}  Bf8 {[%clk 0:00:32]} 25. Ra7 {[%clk 0:00:10]}  Qe6 {[%clk 0:00:16]} 26. Ng5 {[%clk 0:00:08]}  Qf5 {[%clk 0:00:16]} 27. Ne4 {[%clk 0:00:09]}  Qxf4 {[%clk 0:00:08]} 28. Bxf4 {[%clk 0:00:08]}  Bg7 {[%clk 0:00:06]} 29. Nd6 {[%clk 0:00:08]}  Rd8 {[%clk 0:00:03]} 30. c3 {[%clk 0:00:05]}  b4 {[%clk 0:00:02]} 31. cxb4 {[%clk 0:00:02]}  cxb4 {[%clk 0:00:03]} 32. Nc4 {[%clk 0:00:02]}  Bxc4 {[%clk 0:00:02]} 33. dxc4 {[%clk 0:00:03]}  Bxb2 {[%clk 0:00:03]} 34. Rb7 {[%clk 0:00:04]}  Bc3 {[%clk 0:00:01]} 35. Kh2 {[%clk 0:00:04]}  Rc8 {[%clk 0:00:02]} 36. Rc7 {[%clk 0:00:03]}  Rxc7 {[%clk 0:00:02]} 37. Bxc7 {[%clk 0:00:04]}  b3 {[%clk 0:00:03]} 38. Ba5 {[%clk 0:00:03]}  Bxa5 {[%clk 0:00:03]} 0-1


[Site "https://www.chess.com"]

[Event "Titled Tuesday Blitz April 4 Early 2023"]
[White "Al-Tarboush, Ward"]
[Black "Gokerkan, Cem Kaan"]
[WhiteFideId "7601450"]
[BlackFideId "6336760"]
[WhiteElo "2265"]
[BlackElo "2365"]
[Result "0-1"]
[Round "07"]
[TimeControl "180+2"]
[Date "2023.04.04"]
[WhiteClock "0:00:03"]
[BlackClock "0:00:45"]

1. e4 {[%clk 0:03:00]}  e5 {[%clk 0:02:58]} 2. Nf3 {[%clk 0:03:00]}  Nf6 {[%clk 0:02:58]} 3. Nxe5 {[%clk 0:02:59]}  d5 {[%clk 0:02:58]} 4. exd5 {[%clk 0:02:50]}  Qxd5 {[%clk 0:02:56]} 5. Nf3 {[%clk 0:02:49]}  Nc6 {[%clk 0:02:56]} 6. Nc3 {[%clk 0:02:47]}  Qh5 {[%clk 0:02:55]} 7. Be2 {[%clk 0:02:44]}  Bg4 {[%clk 0:02:54]} 8. O-O {[%clk 0:02:39]}  O-O-O {[%clk 0:02:52]} 9. h3 {[%clk 0:02:26]}  Bd6 {[%clk 0:02:52]} 10. Nh2 {[%clk 0:01:32]}  Bxe2 {[%clk 0:02:35]} 11. Qxe2 {[%clk 0:01:29]}  Nd4 {[%clk 0:02:32]} 12. Qxh5 {[%clk 0:01:14]}  Nxh5 {[%clk 0:02:33]} 13. Nf3 {[%clk 0:00:59]}  Nxc2 {[%clk 0:02:16]} 14. Rb1 {[%clk 0:00:59]}  Rhe8 {[%clk 0:02:10]} 15. a3 {[%clk 0:00:57]}  Be5 {[%clk 0:01:51]} 16. b4 {[%clk 0:00:45]}  Nd4 {[%clk 0:01:50]} 17. Nxe5 {[%clk 0:00:44]}  Rxe5 {[%clk 0:01:51]} 18. Bb2 {[%clk 0:00:43]}  Nf4 {[%clk 0:01:46]} 19. Rfe1 {[%clk 0:00:42]}  Rxe1+ {[%clk 0:01:46]} 20. Rxe1 {[%clk 0:00:42]}  Nd3 {[%clk 0:01:47]} 21. Rb1 {[%clk 0:00:42]}  Nb3 {[%clk 0:01:44]} 22. Ne4 {[%clk 0:00:35]}  f5 {[%clk 0:01:44]} 23. Bxg7 {[%clk 0:00:36]}  fxe4 {[%clk 0:01:37]} 24. Rxb3 {[%clk 0:00:36]}  Rg8 {[%clk 0:01:38]} 25. Bh6 {[%clk 0:00:29]}  Ne1 {[%clk 0:01:24]} 26. g3 {[%clk 0:00:23]}  Rg6 {[%clk 0:01:17]} 27. Bf4 {[%clk 0:00:21]}  Nd3 {[%clk 0:01:15]} 28. Be3 {[%clk 0:00:17]}  Ra6 {[%clk 0:01:08]} 29. Rc3 {[%clk 0:00:16]}  Kd7 {[%clk 0:01:08]} 30. f3 {[%clk 0:00:16]}  Ne5 {[%clk 0:01:01]} 31. fxe4 {[%clk 0:00:16]}  b5 {[%clk 0:01:02]} 32. Bf4 {[%clk 0:00:15]}  Nc4 {[%clk 0:01:03]} 33. d3 {[%clk 0:00:12]}  Rxa3 {[%clk 0:01:03]} 34. Rxa3 {[%clk 0:00:12]}  Nxa3 {[%clk 0:01:04]} 35. Bd2 {[%clk 0:00:07]}  Nc2 {[%clk 0:00:50]} 36. Bc3 {[%clk 0:00:07]}  c5 {[%clk 0:00:51]} 37. bxc5 {[%clk 0:00:05]}  b4 {[%clk 0:00:51]} 38. Bb2 {[%clk 0:00:04]}  a5 {[%clk 0:00:52]} 39. Kf2 {[%clk 0:00:04]}  a4 {[%clk 0:00:53]} 40. Ke2 {[%clk 0:00:04]}  a3 {[%clk 0:00:53]} 41. Kd2 {[%clk 0:00:05]}  Ne1 {[%clk 0:00:45]} 42. Be5 {[%clk 0:00:03]}  Nf3+ {[%clk 0:00:45]} 0-1


[Site "https://www.chess.com"]

[Event "Titled Tuesday Blitz April 4 Early 2023"]
[White "Adla, Diego"]
[Black "Remizov, Yaroslav"]
[WhiteFideId "100072"]
[BlackFideId "34134015"]
[WhiteElo "2377"]
[BlackElo "2412"]
[Result "1-0"]
[Round "07"]
[TimeControl "180+2"]
[Date "2023.04.04"]
[WhiteClock "0:00:27"]
[BlackClock "0:00:02"]

1. e4 {[%clk 0:03:00]}  c6 {[%clk 0:02:59]} 2. Nf3 {[%clk 0:02:58]}  d5 {[%clk 0:03:00]} 3. d3 {[%clk 0:02:57]}  Qc7 {[%clk 0:02:53]} 4. Nc3 {[%clk 0:02:55]}  dxe4 {[%clk 0:02:52]} 5. dxe4 {[%clk 0:02:54]}  e5 {[%clk 0:02:52]} 6. Bc4 {[%clk 0:02:51]}  h6 {[%clk 0:02:30]} 7. a4 {[%clk 0:02:42]}  Nf6 {[%clk 0:02:27]} 8. Qe2 {[%clk 0:02:34]}  Bc5 {[%clk 0:02:22]} 9. O-O {[%clk 0:02:23]}  O-O {[%clk 0:02:20]} 10. h3 {[%clk 0:02:16]}  Nbd7 {[%clk 0:02:18]} 11. Nh4 {[%clk 0:02:12]}  Nb6 {[%clk 0:02:03]} 12. Bb3 {[%clk 0:02:08]}  a5 {[%clk 0:02:03]} 13. Kh1 {[%clk 0:02:03]}  Rd8 {[%clk 0:01:53]} 14. f4 {[%clk 0:01:59]}  exf4 {[%clk 0:01:34]} 15. Bxf4 {[%clk 0:01:59]}  Qe7 {[%clk 0:01:34]} 16. Bxh6 {[%clk 0:01:19]}  gxh6 {[%clk 0:01:28]} 17. Ng6 {[%clk 0:01:19]}  Qd6 {[%clk 0:00:58]} 18. e5 {[%clk 0:01:15]}  Ne4 {[%clk 0:00:38]} 19. Nxe4 {[%clk 0:01:02]}  Qxg6 {[%clk 0:00:36]} 20. Nxc5 {[%clk 0:01:01]}  Nd5 {[%clk 0:00:32]} 21. Rf3 {[%clk 0:00:52]}  Be6 {[%clk 0:00:19]} 22. Raf1 {[%clk 0:00:50]}  Rf8 {[%clk 0:00:17]} 23. Ne4 {[%clk 0:00:50]}  Kh8 {[%clk 0:00:15]} 24. Nf6 {[%clk 0:00:48]}  Nxf6 {[%clk 0:00:12]} 25. Rxf6 {[%clk 0:00:49]}  Qg7 {[%clk 0:00:12]} 26. Qh5 {[%clk 0:00:45]}  Bxb3 {[%clk 0:00:11]} 27. Rxh6+ {[%clk 0:00:41]}  Kg8 {[%clk 0:00:12]} 28. cxb3 {[%clk 0:00:40]}  Rae8 {[%clk 0:00:12]} 29. Rf5 {[%clk 0:00:39]}  Re6 {[%clk 0:00:11]} 30. Rg5 {[%clk 0:00:33]}  Rg6 {[%clk 0:00:04]} 31. Rhxg6 {[%clk 0:00:32]}  fxg6 {[%clk 0:00:05]} 32. Rxg6 {[%clk 0:00:32]}  Rf1+ {[%clk 0:00:06]} 33. Kh2 {[%clk 0:00:32]}  b5 {[%clk 0:00:06]} 34. Rxg7+ {[%clk 0:00:30]}  Kxg7 {[%clk 0:00:06]} 35. Qg5+ {[%clk 0:00:29]}  Kh7 {[%clk 0:00:04]} 36. Qe7+ {[%clk 0:00:29]}  Kg8 {[%clk 0:00:04]} 37. Qe8+ {[%clk 0:00:28]}  Kg7 {[%clk 0:00:03]} 38. Qxc6 {[%clk 0:00:28]}  b4 {[%clk 0:00:02]} 39. Qc7+ {[%clk 0:00:27]} 1-0


[Site "https://www.chess.com"]

[Event "Titled Tuesday Blitz April 4 Early 2023"]
[White "Rohith Krishna S"]
[Black "Souleidis, Georgios"]
[WhiteFideId "46617051"]
[BlackFideId "4206827"]
[WhiteElo "2270"]
[BlackElo "2401"]
[Result "1-0"]
[Round "07"]
[TimeControl "180+2"]
[Date "2023.04.04"]
[WhiteClock "0:02:14"]
[BlackClock "0:01:06"]

1. e4 {[%clk 0:02:56]}  c5 {[%clk 0:02:59]} 2. Nf3 {[%clk 0:02:56]}  e6 {[%clk 0:03:00]} 3. d4 {[%clk 0:02:50]}  cxd4 {[%clk 0:03:01]} 4. Nxd4 {[%clk 0:02:50]}  Nf6 {[%clk 0:03:00]} 5. Bd3 {[%clk 0:02:47]}  d5 {[%clk 0:02:57]} 6. e5 {[%clk 0:02:46]}  Nfd7 {[%clk 0:02:57]} 7. f4 {[%clk 0:02:46]}  Nc6 {[%clk 0:02:57]} 8. c3 {[%clk 0:02:43]}  Nc5 {[%clk 0:02:55]} 9. Bc2 {[%clk 0:02:41]}  Be7 {[%clk 0:02:49]} 10. O-O {[%clk 0:02:41]}  O-O {[%clk 0:02:46]} 11. Qh5 {[%clk 0:02:33]}  g6 {[%clk 0:02:42]} 12. Qh6 {[%clk 0:02:33]}  Re8 {[%clk 0:02:00]} 13. Be3 {[%clk 0:02:29]}  Bf8 {[%clk 0:01:58]} 14. Qh3 {[%clk 0:02:25]}  Nxd4 {[%clk 0:01:48]} 15. Bxd4 {[%clk 0:02:23]}  b6 {[%clk 0:01:44]} 16. Nd2 {[%clk 0:02:16]}  Ba6 {[%clk 0:01:40]} 17. Rf2 {[%clk 0:02:16]}  Bd3 {[%clk 0:01:06]} 18. Bxd3 {[%clk 0:02:13]}  Nxd3 {[%clk 0:01:06]} 19. Qxd3 {[%clk 0:02:14]} 1-0


[Site "https://www.chess.com"]